[Event "*** Titled Tuesday Blitz"]
[Site "Chess.com"]
[Date "2021.04.20"]
[Round "6"]
[White "JAAC2002"]
[Black "NikolaGry"]
[Result "1/2-1/2"]
[WhiteElo "2525"]
[BlackElo "2701"]
[TimeControl "180+1"]
[EndTime "11:05:55 PDT"]
[Termination "Game drawn by repetition"]

1. e4 {[%clk 0:02:58.8]} 1... d6 {[%clk 0:02:59.7]} 2. d4 {[%clk 0:02:58.7]}
2... Nf6 {[%clk 0:03:00.2]} 3. Nc3 {[%clk 0:02:59.2]} 3... g6 {[%clk 0:02:59.8]}
4. f4 {[%clk 0:02:59]} 4... Bg7 {[%clk 0:02:58.8]} 5. Nf3 {[%clk 0:02:59.3]}
5... c5 {[%clk 0:02:59.1]} 6. dxc5 {[%clk 0:03:00.2]} 6... Qa5 {[%clk
0:02:58.7]} 7. Bd3 {[%clk 0:03:00.5]} 7... Qxc5 {[%clk 0:02:58]} 8. Qe2 {[%clk
0:03:00.8]} 8... Bg4 {[%clk 0:02:57.5]} 9. Be3 {[%clk 0:02:59.5]} 9... Qa5
{[%clk 0:02:57.6]} 10. O-O {[%clk 0:02:58.8]} 10... O-O {[%clk 0:02:56]} 11. Qf2
{[%clk 0:02:56.3]} 11... Bxf3 {[%clk 0:02:55.6]} 12. Qxf3 {[%clk 0:02:57.2]}
12... Nc6 {[%clk 0:02:56.2]} 13. a3 {[%clk 0:02:46.4]} 13... Rac8 {[%clk
0:02:50.5]} 14. Kh1 {[%clk 0:02:44]} 14... Nd7 {[%clk 0:02:49.1]} 15. Bd2 {[%clk
0:02:41.5]} 15... a6 {[%clk 0:02:44]} 16. f5 {[%clk 0:02:28.3]} 16... Nde5
{[%clk 0:02:19.6]} 17. Qh3 {[%clk 0:02:28.3]} 17... Nxd3 {[%clk 0:02:17.7]} 18.
cxd3 {[%clk 0:02:27]} 18... Qb6 {[%clk 0:02:17.6]} 19. Nd5 {[%clk 0:02:07.9]}
19... Qxb2 {[%clk 0:02:06.4]} 20. Bg5 {[%clk 0:02:07.5]} 20... Qxa1 {[%clk
0:01:06.3]} 21. Rxa1 {[%clk 0:02:05.9]} 21... Bxa1 {[%clk 0:01:05.9]} 22. Qh4
{[%clk 0:00:59.6]} 22... f6 {[%clk 0:00:51]} 23. Be3 {[%clk 0:00:58.8]} 23...
Rf7 {[%clk 0:00:44.8]} 24. fxg6 {[%clk 0:00:49.7]} 24... hxg6 {[%clk 0:00:43.6]}
25. Qg4 {[%clk 0:00:50.2]} 25... Rcf8 {[%clk 0:00:31.3]} 26. Bh6 {[%clk
0:00:46.4]} 26... Ne5 {[%clk 0:00:25.9]} 27. Qe6 {[%clk 0:00:45.6]} 27... Ra8
{[%clk 0:00:17]} 28. d4 {[%clk 0:00:40.6]} 28... Nc6 {[%clk 0:00:13.9]} 29. Nf4
{[%clk 0:00:28.7]} 29... Nxd4 {[%clk 0:00:11]} 30. Qg4 {[%clk 0:00:27.5]} 30...
g5 {[%clk 0:00:11.1]} 31. h4 {[%clk 0:00:20.4]} 31... Kh7 {[%clk 0:00:11]} 32.
hxg5 {[%clk 0:00:20.1]} 32... fxg5 {[%clk 0:00:10.7]} 33. Bxg5 {[%clk
0:00:15.3]} 33... Rh8 {[%clk 0:00:10.3]} 34. Kg1 {[%clk 0:00:12.3]} 34... Rg7
{[%clk 0:00:09.9]} 35. Nh3 {[%clk 0:00:06.6]} 35... Nc6 {[%clk 0:00:07.1]} 36.
Qh5+ {[%clk 0:00:06.3]} 36... Kg8 {[%clk 0:00:07]} 37. Qe8+ {[%clk 0:00:06.7]}
37... Kh7 {[%clk 0:00:07.3]} 38. Qh5+ {[%clk 0:00:05.3]} 38... Kg8 {[%clk
0:00:07.5]} 39. Qe8+ {[%clk 0:00:05.1]} 39... Kh7 {[%clk 0:00:07.9]} 40. Qh5+
{[%clk 0:00:04.3]} 1/2-1/2

[Event "*** Titled Tuesday Blitz"]
[Site "Chess.com"]
[Date "2021.04.20"]
[Round "6"]
[White "ckgchess"]
[Black "elohunter1999"]
[Result "1-0"]
[WhiteElo "2701"]
[BlackElo "2502"]
[TimeControl "180+1"]
[EndTime "11:05:56 PDT"]
[Termination "ckgchess won by checkmate"]

1. e4 {[%clk 0:03:00.9]} 1... e6 {[%clk 0:02:59.6]} 2. d4 {[%clk 0:03:01.1]}
2... d5 {[%clk 0:03:00]} 3. Nd2 {[%clk 0:03:01.5]} 3... Nf6 {[%clk 0:02:58.8]}
4. e5 {[%clk 0:02:59.1]} 4... Nfd7 {[%clk 0:02:58.6]} 5. c3 {[%clk 0:02:59.7]}
5... c5 {[%clk 0:02:59.1]} 6. Bd3 {[%clk 0:03:00]} 6... Nc6 {[%clk 0:02:59.3]}
7. Ne2 {[%clk 0:03:00.5]} 7... cxd4 {[%clk 0:02:59.6]} 8. cxd4 {[%clk
0:03:00.7]} 8... f6 {[%clk 0:03:00.5]} 9. exf6 {[%clk 0:03:01.6]} 9... Nxf6
{[%clk 0:03:00.3]} 10. O-O {[%clk 0:03:01.4]} 10... Bd6 {[%clk 0:03:00.3]} 11.
Nf3 {[%clk 0:03:01.5]} 11... Qc7 {[%clk 0:02:56]} 12. g3 {[%clk 0:02:59.6]}
12... O-O {[%clk 0:02:36]} 13. Bf4 {[%clk 0:02:58]} 13... Ng4 {[%clk 0:02:36.3]}
14. Rc1 {[%clk 0:02:29.4]} 14... Bxf4 {[%clk 0:02:34.3]} 15. Nxf4 {[%clk
0:02:29.2]} 15... Rxf4 {[%clk 0:02:34.2]} 16. gxf4 {[%clk 0:02:30.1]} 16... Qxf4
{[%clk 0:02:31.1]} 17. h3 {[%clk 0:02:16.7]} 17... e5 {[%clk 0:02:28.6]} 18.
hxg4 {[%clk 0:01:58.2]} 18... Bxg4 {[%clk 0:02:29.5]} 19. Be2 {[%clk 0:01:57.3]}
19... Bh3 {[%clk 0:02:26.4]} 20. Kh1 {[%clk 0:01:09.1]} 20... Bxf1 {[%clk
0:01:51.3]} 21. Bxf1 {[%clk 0:01:07.2]} 21... e4 {[%clk 0:01:50]} 22. Nh2 {[%clk
0:01:05.1]} 22... Qxf2 {[%clk 0:01:47.5]} 23. Rc2 {[%clk 0:01:02.2]} 23... Qh4
{[%clk 0:01:14.5]} 24. Qg4 {[%clk 0:00:57.4]} 24... Qf6 {[%clk 0:01:04.3]} 25.
Qh5 {[%clk 0:00:43.5]} 25... Qxd4 {[%clk 0:00:57.5]} 26. Rc1 {[%clk 0:00:35.9]}
26... g6 {[%clk 0:00:46.9]} 27. Qg4 {[%clk 0:00:35.3]} 27... Qe5 {[%clk
0:00:39.5]} 28. Rd1 {[%clk 0:00:34.8]} 28... Rf8 {[%clk 0:00:37.4]} 29. Bh3
{[%clk 0:00:30.3]} 29... Rf5 {[%clk 0:00:28.6]} 30. Qg2 {[%clk 0:00:22.5]} 30...
Rh5 {[%clk 0:00:21.2]} 31. Ng4 {[%clk 0:00:22.7]} 31... Qe7 {[%clk 0:00:14.2]}
32. Rf1 {[%clk 0:00:20.8]} 32... Rf5 {[%clk 0:00:08.9]} 33. Nh6+ {[%clk
0:00:19.7]} 33... Kh8 {[%clk 0:00:05.5]} 34. Rxf5 {[%clk 0:00:18.4]} 34... Qh4
{[%clk 0:00:03.3]} 35. Nf7+ {[%clk 0:00:14.6]} 35... Kg7 {[%clk 0:00:03.5]} 36.
Rf1 {[%clk 0:00:11.8]} 36... d4 {[%clk 0:00:02.5]} 37. Ng5 {[%clk 0:00:11.5]}
37... e3 {[%clk 0:00:02.5]} 38. Ne6+ {[%clk 0:00:10.7]} 38... Kh6 {[%clk
0:00:02.4]} 39. Rf4 {[%clk 0:00:08.8]} 39... Qe1+ {[%clk 0:00:02.1]} 40. Kh2
{[%clk 0:00:09.2]} 40... e2 {[%clk 0:00:02.6]} 41. Qg5# {[%clk 0:00:08.9]} 1-0

[Event "*** Titled Tuesday Blitz"]
[Site "Chess.com"]
[Date "2021.04.20"]
[Round "6"]
[White "gmpeter008"]
[Black "klimkoj"]
[Result "1-0"]
[WhiteElo "2482"]
[BlackElo "2608"]
[TimeControl "180+1"]
[EndTime "11:05:57 PDT"]
[Termination "gmpeter008 won on time"]

1. d4 {[%clk 0:02:59.6]} 1... Nf6 {[%clk 0:03:00.3]} 2. Bf4 {[%clk 0:02:49.8]}
2... b6 {[%clk 0:02:59.4]} 3. Nf3 {[%clk 0:02:47.9]} 3... Bb7 {[%clk 0:02:59.6]}
4. e3 {[%clk 0:02:48.2]} 4... d6 {[%clk 0:02:59.9]} 5. a4 {[%clk 0:02:47.5]}
5... g6 {[%clk 0:03:00.8]} 6. c3 {[%clk 0:02:47.2]} 6... Bg7 {[%clk 0:02:59.5]}
7. Nbd2 {[%clk 0:02:47.5]} 7... O-O {[%clk 0:02:59.1]} 8. Be2 {[%clk 0:02:48]}
8... Nbd7 {[%clk 0:02:59.3]} 9. a5 {[%clk 0:02:47.8]} 9... a6 {[%clk 0:02:58.4]}
10. axb6 {[%clk 0:02:47.6]} 10... cxb6 {[%clk 0:02:59.3]} 11. O-O {[%clk
0:02:48.4]} 11... Re8 {[%clk 0:02:56.7]} 12. Nc4 {[%clk 0:02:45.7]} 12... Qc7
{[%clk 0:02:47.2]} 13. Bg3 {[%clk 0:02:31.5]} 13... Bxf3 {[%clk 0:02:38]} 14.
gxf3 {[%clk 0:02:30.6]} 14... Nh5 {[%clk 0:02:37]} 15. Kg2 {[%clk 0:02:28.5]}
15... b5 {[%clk 0:02:16.5]} 16. Nd2 {[%clk 0:02:27.1]} 16... Nb6 {[%clk
0:02:14.5]} 17. f4 {[%clk 0:02:26.3]} 17... Nxg3 {[%clk 0:02:12.8]} 18. hxg3
{[%clk 0:02:27.2]} 18... d5 {[%clk 0:02:04.1]} 19. Nb3 {[%clk 0:02:24]} 19...
Na4 {[%clk 0:02:00.8]} 20. Qd2 {[%clk 0:02:22.8]} 20... e6 {[%clk 0:01:58.8]}
21. Nc1 {[%clk 0:02:20.2]} 21... Nb6 {[%clk 0:01:55.5]} 22. Nd3 {[%clk
0:02:15.7]} 22... Nc4 {[%clk 0:01:55.6]} 23. Qd1 {[%clk 0:02:16]} 23... a5
{[%clk 0:01:21.3]} 24. b3 {[%clk 0:02:15.2]} 24... Nd6 {[%clk 0:01:19.1]} 25.
Nc5 {[%clk 0:02:15.2]} 25... Reb8 {[%clk 0:01:16.7]} 26. Rh1 {[%clk 0:02:08.7]}
26... Bf8 {[%clk 0:01:12.5]} 27. Bd3 {[%clk 0:02:07]} 27... Nc8 {[%clk
0:00:36.4]} 28. b4 {[%clk 0:01:59.3]} 28... a4 {[%clk 0:00:36.2]} 29. Qe2 {[%clk
0:01:57.9]} 29... Nd6 {[%clk 0:00:35]} 30. Qg4 {[%clk 0:01:57.2]} 30... f5
{[%clk 0:00:22.7]} 31. Qh4 {[%clk 0:01:48.5]} 31... Qf7 {[%clk 0:00:22.4]} 32.
Nxe6 {[%clk 0:01:47.3]} 32... Be7 {[%clk 0:00:20.6]} 33. Qh6 {[%clk 0:01:42.9]}
33... Qxe6 {[%clk 0:00:15.3]} 34. Qxh7+ {[%clk 0:01:43.1]} 34... Kf8 {[%clk
0:00:15.9]} 35. Qh8+ {[%clk 0:01:37.7]} 35... Qg8 {[%clk 0:00:16]} 36. Qe5
{[%clk 0:01:38]} 36... Qg7 {[%clk 0:00:13.1]} 37. Rh8+ {[%clk 0:01:35.5]} 37...
Kf7 {[%clk 0:00:13.2]} 38. Qxd5+ {[%clk 0:01:36.1]} 38... Kf6 {[%clk 0:00:12.9]}
39. Rxb8 {[%clk 0:01:02.1]} 39... Rxb8 {[%clk 0:00:13.8]} 40. e4 {[%clk
0:00:58.3]} 40... fxe4 {[%clk 0:00:11.1]} 41. Bxe4 {[%clk 0:00:57.4]} 41... Nxe4
{[%clk 0:00:11.5]} 42. Qxe4 {[%clk 0:00:52.3]} 42... Bd6 {[%clk 0:00:11.8]} 43.
d5 {[%clk 0:00:48.6]} 43... Qe7 {[%clk 0:00:10.5]} 44. Qd4+ {[%clk 0:00:48]}
44... Kf7 {[%clk 0:00:10.7]} 45. Rh1 {[%clk 0:00:48.3]} 45... Ke8 {[%clk
0:00:08.8]} 46. Rh8+ {[%clk 0:00:45.9]} 46... Kd7 {[%clk 0:00:02.1]} 47. Qa7+
{[%clk 0:00:45.5]} 47... Bc7 {[%clk 0:00:02.6]} 48. Rxb8 {[%clk 0:00:41.7]}
48... Qe4+ {[%clk 0:00:03.1]} 49. Kh2 {[%clk 0:00:42]} 49... Qxd5 {[%clk
0:00:02.2]} 50. Rb7 {[%clk 0:00:40.1]} 1-0

[Event "*** Titled Tuesday Blitz"]
[Site "Chess.com"]
[Date "2021.04.20"]
[Round "6"]
[White "WPWPWP-2015"]
[Black "picturesquecheck"]
[Result "1-0"]
[WhiteElo "2467"]
[BlackElo "2296"]
[TimeControl "180+1"]
[EndTime "11:06:00 PDT"]
[Termination "WPWPWP-2015 won by resignation"]

1. e4 {[%clk 0:03:00.9]} 1... c5 {[%clk 0:02:55.9]} 2. Nc3 {[%clk 0:02:58.3]}
2... Nc6 {[%clk 0:02:54.4]} 3. Nge2 {[%clk 0:02:58.1]} 3... g6 {[%clk
0:02:54.6]} 4. h4 {[%clk 0:02:54.6]} 4... h5 {[%clk 0:02:53.8]} 5. g3 {[%clk
0:02:54.3]} 5... Bg7 {[%clk 0:02:54]} 6. Bg2 {[%clk 0:02:54.4]} 6... Nf6 {[%clk
0:02:54.5]} 7. d3 {[%clk 0:02:54.5]} 7... O-O {[%clk 0:02:54.7]} 8. Bg5 {[%clk
0:02:53.7]} 8... d6 {[%clk 0:02:54]} 9. Qd2 {[%clk 0:02:53.2]} 9... Rb8 {[%clk
0:02:43.8]} 10. f3 {[%clk 0:02:47.1]} 10... b5 {[%clk 0:02:42.6]} 11. Nd1 {[%clk
0:02:44.7]} 11... b4 {[%clk 0:02:35.7]} 12. Ne3 {[%clk 0:02:43.1]} 12... Nh7
{[%clk 0:02:31.6]} 13. Nc4 {[%clk 0:02:43]} 13... Nxg5 {[%clk 0:02:29.5]} 14.
hxg5 {[%clk 0:02:42.3]} 14... Ba6 {[%clk 0:02:29]} 15. c3 {[%clk 0:02:28.3]}
15... Bxc4 {[%clk 0:02:27.2]} 16. dxc4 {[%clk 0:02:27.8]} 16... Ne5 {[%clk
0:02:26.6]} 17. b3 {[%clk 0:02:26.4]} 17... bxc3 {[%clk 0:02:24.6]} 18. Nxc3
{[%clk 0:02:25.7]} 18... Qa5 {[%clk 0:02:23.9]} 19. Rc1 {[%clk 0:02:24.7]} 19...
e6 {[%clk 0:02:18.6]} 20. Nb5 {[%clk 0:02:18.4]} 20... Qxd2+ {[%clk 0:02:14.2]}
21. Kxd2 {[%clk 0:02:17.7]} 21... Rfd8 {[%clk 0:02:14.8]} 22. f4 {[%clk
0:02:12]} 22... Ng4 {[%clk 0:02:13.8]} 23. Ke2 {[%clk 0:01:57.4]} 23... a6
{[%clk 0:02:12.3]} 24. Nc3 {[%clk 0:01:57]} 24... f5 {[%clk 0:01:47.6]} 25. gxf6
{[%clk 0:01:38.7]} 25... Nxf6 {[%clk 0:01:44.5]} 26. Bf3 {[%clk 0:01:36.1]}
26... Ne8 {[%clk 0:01:33.6]} 27. f5 {[%clk 0:01:32]} 27... exf5 {[%clk
0:01:27.4]} 28. exf5 {[%clk 0:01:31]} 28... Bxc3 {[%clk 0:01:24]} 29. Rxc3
{[%clk 0:01:30.5]} 29... Nf6 {[%clk 0:01:24.5]} 30. fxg6 {[%clk 0:01:27.6]}
30... Kg7 {[%clk 0:01:24.6]} 31. Bxh5 {[%clk 0:01:17.5]} 31... Rh8 {[%clk
0:01:20.2]} 32. Bf3 {[%clk 0:01:08.8]} 32... Rbe8+ {[%clk 0:01:19]} 33. Kf2
{[%clk 0:01:07.2]} 33... Ng4+ {[%clk 0:01:12.1]} 34. Kg2 {[%clk 0:01:02.1]}
34... Ne3+ {[%clk 0:01:10]} 35. Kg1 {[%clk 0:01:01]} 35... Rxh1+ {[%clk
0:01:06.1]} 36. Bxh1 {[%clk 0:01:00.5]} 36... Kxg6 {[%clk 0:01:05.8]} 37. Bf3
{[%clk 0:00:57.9]} 37... Kg5 {[%clk 0:01:02.6]} 38. Rd3 {[%clk 0:00:54.8]} 38...
Nf5 {[%clk 0:00:58.9]} 39. Rd5 {[%clk 0:00:53.2]} 39... Re5 {[%clk 0:00:56.1]}
40. Rd1 {[%clk 0:00:45]} 40... Nd4 {[%clk 0:00:54.6]} 41. Kg2 {[%clk 0:00:41.4]}
41... Re3 {[%clk 0:00:53]} 42. Rf1 {[%clk 0:00:27.9]} 42... Rd3 {[%clk
0:00:44.3]} 43. Rf2 {[%clk 0:00:26]} 43... a5 {[%clk 0:00:42.6]} 44. Bd5 {[%clk
0:00:20.7]} 44... Nf5 {[%clk 0:00:28.8]} 45. Bf3 {[%clk 0:00:20.1]} 45... Ne3+
{[%clk 0:00:20.7]} 46. Kh2 {[%clk 0:00:20]} 46... Nf5 {[%clk 0:00:18.7]} 47. Be4
{[%clk 0:00:19.2]} 47... Rd1 {[%clk 0:00:07]} 1-0

[Event "*** Titled Tuesday Blitz"]
[Site "Chess.com"]
[Date "2021.04.20"]
[Round "6"]
[White "iulik86"]
[Black "Srisshhhtea"]
[Result "1-0"]
[WhiteElo "2580"]
[BlackElo "2324"]
[TimeControl "180+1"]
[EndTime "11:06:01 PDT"]
[Termination "iulik86 won on time"]

1. e4 {[%clk 0:03:00.9]} 1... e6 {[%clk 0:02:59.4]} 2. d4 {[%clk 0:02:58.8]}
2... d5 {[%clk 0:02:59.9]} 3. Nd2 {[%clk 0:02:58.6]} 3... Nc6 {[%clk 0:02:55.1]}
4. Ngf3 {[%clk 0:02:54.9]} 4... Nf6 {[%clk 0:02:54.5]} 5. e5 {[%clk 0:02:55]}
5... Nd7 {[%clk 0:02:54.6]} 6. Bd3 {[%clk 0:02:54.6]} 6... f6 {[%clk 0:02:53]}
7. exf6 {[%clk 0:02:22.7]} 7... Nxf6 {[%clk 0:02:49]} 8. O-O {[%clk 0:02:20.4]}
8... Bd6 {[%clk 0:02:49.5]} 9. c4 {[%clk 0:02:20]} 9... O-O {[%clk 0:02:46.8]}
10. Re1 {[%clk 0:02:19]} 10... Kh8 {[%clk 0:02:42.1]} 11. Nb3 {[%clk 0:02:17.4]}
11... Ng4 {[%clk 0:02:21.8]} 12. h3 {[%clk 0:02:12.3]} 12... Nf6 {[%clk
0:01:41.7]} 13. Bg5 {[%clk 0:02:07.9]} 13... Bd7 {[%clk 0:01:31.1]} 14. Rc1
{[%clk 0:02:06.3]} 14... Qe8 {[%clk 0:01:12.9]} 15. Bxf6 {[%clk 0:01:53.8]}
15... Rxf6 {[%clk 0:01:11]} 16. cxd5 {[%clk 0:01:53.8]} 16... Nb4 {[%clk
0:01:10]} 17. dxe6 {[%clk 0:01:39.9]} 17... Bc6 {[%clk 0:01:01.7]} 18. Be4
{[%clk 0:01:35.4]} 18... Bxe4 {[%clk 0:00:57.4]} 19. Rxe4 {[%clk 0:01:34.8]}
19... Nxa2 {[%clk 0:00:57.8]} 20. Ra1 {[%clk 0:01:27.5]} 20... Nb4 {[%clk
0:00:56.3]} 21. d5 {[%clk 0:01:24.4]} 21... Rf5 {[%clk 0:00:53.3]} 22. Rd4
{[%clk 0:01:16]} 22... Bf8 {[%clk 0:00:33.7]} 23. Qd2 {[%clk 0:01:09.3]} 23...
c5 {[%clk 0:00:19.6]} 24. dxc6 {[%clk 0:00:47.8]} 24... Nxc6 {[%clk 0:00:18.8]}
25. Re4 {[%clk 0:00:48]} 25... Rf6 {[%clk 0:00:18.2]} 26. Qe3 {[%clk 0:00:47.6]}
26... h6 {[%clk 0:00:16.4]} 27. Re1 {[%clk 0:00:46.7]} 27... Be7 {[%clk
0:00:15.8]} 28. Rg4 {[%clk 0:00:40]} 28... Bb4 {[%clk 0:00:14.3]} 29. Re2 {[%clk
0:00:38.9]} 29... Rd8 {[%clk 0:00:12.7]} 30. Re4 {[%clk 0:00:24.3]} 30... Rd1+
{[%clk 0:00:12.1]} 31. Kh2 {[%clk 0:00:24.8]} 31... Qe7 {[%clk 0:00:12.2]} 32.
g3 {[%clk 0:00:24.6]} 32... Rd6 {[%clk 0:00:11.1]} 33. Kg2 {[%clk 0:00:22.9]}
33... Rd1 {[%clk 0:00:09.7]} 34. Nh4 {[%clk 0:00:18.5]} 34... Kg8 {[%clk
0:00:08.6]} 35. Rg4 {[%clk 0:00:18.6]} 35... Rd6 {[%clk 0:00:05.4]} 36. Ng6
{[%clk 0:00:18.2]} 36... Qxe6 {[%clk 0:00:03.7]} 37. Nf4 {[%clk 0:00:12.3]}
37... Qxe3 {[%clk 0:00:03.2]} 38. Rxe3 {[%clk 0:00:13.2]} 38... a6 {[%clk
0:00:02.2]} 39. Nh5 {[%clk 0:00:12.6]} 39... Rg6 {[%clk 0:00:01.9]} 40. Rge4
{[%clk 0:00:12.8]} 40... Kh7 {[%clk 0:00:01.4]} 41. Nf4 {[%clk 0:00:12.9]} 41...
Rgf6 {[%clk 0:00:01.2]} 42. h4 {[%clk 0:00:12.5]} 1-0

[Event "*** Titled Tuesday Blitz"]
[Site "Chess.com"]
[Date "2021.04.20"]
[Round "6"]
[White "PchelkinVK"]
[Black "4empechement"]
[Result "1-0"]
[WhiteElo "2638"]
[BlackElo "2475"]
[TimeControl "180+1"]
[EndTime "11:06:03 PDT"]
[Termination "PchelkinVK won by resignation"]

1. d4 {[%clk 0:03:00.9]} 1... Nf6 {[%clk 0:02:59.6]} 2. Nc3 {[%clk 0:03:01.3]}
2... d5 {[%clk 0:02:58.6]} 3. Bf4 {[%clk 0:03:01.6]} 3... c5 {[%clk 0:02:44.3]}
4. e4 {[%clk 0:03:01.1]} 4... e6 {[%clk 0:01:41.8]} 5. e5 {[%clk 0:02:54.9]}
5... Nfd7 {[%clk 0:01:35.9]} 6. dxc5 {[%clk 0:02:52.4]} 6... Bxc5 {[%clk
0:01:34.4]} 7. Nf3 {[%clk 0:02:49.1]} 7... Nc6 {[%clk 0:01:31.4]} 8. Bd3 {[%clk
0:02:46.1]} 8... h6 {[%clk 0:01:28.1]} 9. O-O {[%clk 0:02:38.1]} 9... O-O {[%clk
0:01:25.1]} 10. Qd2 {[%clk 0:02:37.8]} 10... b6 {[%clk 0:01:19.8]} 11. Rae1
{[%clk 0:02:34.3]} 11... f5 {[%clk 0:01:11.4]} 12. Bb5 {[%clk 0:02:02.7]} 12...
Ne7 {[%clk 0:00:56.1]} 13. Bxh6 {[%clk 0:02:01.5]} 13... gxh6 {[%clk 0:00:44.4]}
14. Qxh6 {[%clk 0:02:02.4]} 14... Rf7 {[%clk 0:00:44]} 15. Ng5 {[%clk
0:01:53.3]} 15... Nf8 {[%clk 0:00:43]} 16. Nxf7 {[%clk 0:01:37.5]} 16... Kxf7
{[%clk 0:00:43.9]} 17. h4 {[%clk 0:01:21.4]} 17... Bb7 {[%clk 0:00:30.3]} 18.
Rd1 {[%clk 0:01:10.9]} 18... Ng8 {[%clk 0:00:26.7]} 19. Qh5+ {[%clk 0:01:07.1]}
19... Kg7 {[%clk 0:00:24.6]} 20. Rd3 {[%clk 0:01:04.1]} 20... f4 {[%clk
0:00:18.1]} 21. Ne2 {[%clk 0:00:56.4]} 21... Ng6 {[%clk 0:00:16.2]} 22. g3
{[%clk 0:00:42.5]} 22... Nxe5 {[%clk 0:00:15.6]} 23. Qxe5+ {[%clk 0:00:41.3]}
23... Qf6 {[%clk 0:00:15.6]} 24. Qxf6+ {[%clk 0:00:41]} 24... Nxf6 {[%clk
0:00:15.2]} 25. Nxf4 {[%clk 0:00:41.6]} 25... e5 {[%clk 0:00:14.9]} 26. Ng2
{[%clk 0:00:33.7]} 26... e4 {[%clk 0:00:14.3]} 27. Rd2 {[%clk 0:00:30.9]} 27...
Rf8 {[%clk 0:00:13.2]} 28. c3 {[%clk 0:00:27.2]} 28... Ng4 {[%clk 0:00:13.1]}
29. b4 {[%clk 0:00:25.6]} 29... Bd6 {[%clk 0:00:12]} 30. Be2 {[%clk 0:00:24.6]}
30... Nf6 {[%clk 0:00:09.1]} 31. Ne3 {[%clk 0:00:24.6]} 31... Be5 {[%clk
0:00:08.4]} 32. c4 {[%clk 0:00:19.3]} 32... d4 {[%clk 0:00:08.1]} 33. Nf5+
{[%clk 0:00:19.4]} 33... Kf7 {[%clk 0:00:07.5]} 34. Nxd4 {[%clk 0:00:20.3]}
34... Rd8 {[%clk 0:00:07]} 35. Rfd1 {[%clk 0:00:20.3]} 35... Rg8 {[%clk
0:00:06.3]} 36. Nf5 {[%clk 0:00:19.5]} 36... Ke6 {[%clk 0:00:06.3]} 37. Ne3
{[%clk 0:00:18.8]} 37... a6 {[%clk 0:00:05.1]} 38. c5 {[%clk 0:00:18.9]} 38...
b5 {[%clk 0:00:05.3]} 39. Bf1 {[%clk 0:00:16.5]} 39... Bc6 {[%clk 0:00:04.9]}
40. Bh3+ {[%clk 0:00:16.7]} 40... Ke7 {[%clk 0:00:05]} 41. Nf5+ {[%clk
0:00:17.1]} 41... Kf7 {[%clk 0:00:05.2]} 42. Nd4 {[%clk 0:00:16.9]} 42... Bd5
{[%clk 0:00:04.9]} 43. Nf5 {[%clk 0:00:13.4]} 43... Bc6 {[%clk 0:00:03.9]} 44.
Nh6+ {[%clk 0:00:13.4]} 1-0

[Event "*** Titled Tuesday Blitz"]
[Site "Chess.com"]
[Date "2021.04.20"]
[Round "6"]
[White "AttractiveMustard"]
[Black "chesslh19"]
[Result "0-1"]
[WhiteElo "2356"]
[BlackElo "2239"]
[TimeControl "180+1"]
[EndTime "11:06:03 PDT"]
[Termination "chesslh19 won on time"]

1. e4 {[%clk 0:00:47.4]} 1... e5 {[%clk 0:02:57.8]} 2. Nf3 {[%clk 0:00:46.4]}
2... Nf6 {[%clk 0:02:58.3]} 3. Nxe5 {[%clk 0:00:45.9]} 3... d6 {[%clk
0:02:58.6]} 4. Nf3 {[%clk 0:00:46.3]} 4... Nxe4 {[%clk 0:02:58.8]} 5. d4 {[%clk
0:00:47.1]} 5... d5 {[%clk 0:02:58.8]} 6. Bd3 {[%clk 0:00:47.9]} 6... Be7 {[%clk
0:02:59.3]} 7. O-O {[%clk 0:00:47.7]} 7... Nc6 {[%clk 0:02:59.8]} 8. Nc3 {[%clk
0:00:48.3]} 8... Bf5 {[%clk 0:02:56.4]} 9. Re1 {[%clk 0:00:47.9]} 9... Nxc3
{[%clk 0:02:52.7]} 10. bxc3 {[%clk 0:00:48.8]} 10... Bxd3 {[%clk 0:02:53.3]} 11.
Qxd3 {[%clk 0:00:49.7]} 11... O-O {[%clk 0:02:53.4]} 12. Re2 {[%clk 0:00:50.1]}
12... Bf6 {[%clk 0:02:43]} 13. Bf4 {[%clk 0:00:50]} 13... Re8 {[%clk 0:02:33.2]}
14. Rae1 {[%clk 0:00:49.3]} 14... Rxe2 {[%clk 0:02:32.4]} 15. Rxe2 {[%clk
0:00:50.2]} 15... h6 {[%clk 0:02:17.5]} 16. h3 {[%clk 0:00:50.2]} 16... Qd7
{[%clk 0:01:48.5]} 17. Re3 {[%clk 0:00:35.4]} 17... Na5 {[%clk 0:01:44.5]} 18.
Re2 {[%clk 0:00:32.3]} 18... Nc4 {[%clk 0:01:40.8]} 19. Be5 {[%clk 0:00:32]}
19... Bxe5 {[%clk 0:01:35.6]} 20. Nxe5 {[%clk 0:00:32.9]} 20... Nxe5 {[%clk
0:01:34.7]} 21. Rxe5 {[%clk 0:00:33.8]} 21... Re8 {[%clk 0:01:31.3]} 22. Rxe8+
{[%clk 0:00:30.2]} 22... Qxe8 {[%clk 0:01:30.9]} 23. c4 {[%clk 0:00:29.7]} 23...
Qa4 {[%clk 0:00:49.1]} 24. cxd5 {[%clk 0:00:27.2]} 24... Qxa2 {[%clk 0:00:47.5]}
25. Qe4 {[%clk 0:00:25.9]} 25... g6 {[%clk 0:00:33.9]} 26. Qe5 {[%clk
0:00:23.5]} 26... a5 {[%clk 0:00:27]} 27. Qe8+ {[%clk 0:00:09.1]} 27... Kg7
{[%clk 0:00:26.1]} 28. Qe5+ {[%clk 0:00:09.8]} 28... Kh7 {[%clk 0:00:19.5]} 29.
d6 {[%clk 0:00:07.6]} 29... cxd6 {[%clk 0:00:15.6]} 30. Qxd6 {[%clk 0:00:08.5]}
30... Qxc2 {[%clk 0:00:11.8]} 31. d5 {[%clk 0:00:07.8]} 31... a4 {[%clk
0:00:11.8]} 32. Qd7 {[%clk 0:00:08.1]} 32... Qc1+ {[%clk 0:00:11.2]} 33. Kh2
{[%clk 0:00:07.5]} 33... Qf4+ {[%clk 0:00:10.1]} 34. Kg1 {[%clk 0:00:07.9]}
34... Qc1+ {[%clk 0:00:09.7]} 35. Kh2 {[%clk 0:00:08.1]} 35... Qf4+ {[%clk
0:00:09.7]} 36. Kg1 {[%clk 0:00:08.2]} 36... a3 {[%clk 0:00:08.9]} 37. d6 {[%clk
0:00:03]} 37... a2 {[%clk 0:00:06.7]} 38. Qe7 {[%clk 0:00:01.9]} 38... a1=Q+
{[%clk 0:00:06.2]} 0-1